bitfinex/quotes_ETHUSD_20220202
["timestamp","ask_amount","ask_price","bid_price","bid_amount"]
[1643841198867,1.57786099,2685.4,2685.3,3.3309]
[1643841199066,2.52196858,2685.4,2685.3,3.3309]
[1643841199267,0.94410759,2685.4,2685.3,3.3309]
[1643841202523,0.94544361,2685.4,2685.3,3.3309]
[1643841202927,0.00133602,2685.4,2685.3,3.3309]
[1643841203130,0.94625883,2685.4,2685.3,3.3309]
[1643841203725,0.00133602,2685.4,2685.3,3.3309]
[1643841207466,2.99866735,2685.6,2685.3,3.3309]
[1643841208263,0.94516726,2685.4,2685.3,3.3309]
[1643841208463,1.57786099,2685.4,2685.3,3.3309]
[1643841208663,1.42080636,2685.6,2685.3,3.3309]
[1643841209264,2.99866735,2685.6,2685.3,3.3309]
[1643841211411,0.94520018,2685.4,2685.3,3.3309]
[1643841211610,1.57786099,2685.4,2685.3,3.3309]
[1643841211810,1.42080636,2685.6,2685.3,3.3309]
[1643841212210,2.99866735,2685.6,2685.3,3.3309]
[1643841216866,2.99866735,2685.6,2685.3,1.64784056]
[1643841216867,1.41947034,2685.5,2685.3,1.64784056]
[1643841217066,1.57786099,2685.4,2685.3,1.64784056]
[1643841217715,1.42081286,2685.5,2685.3,1.64784056]
[1643841218119,1.57786099,2685.4,2685.3,1.64784056]
[1643841218318,1.42081286,2685.5,2685.3,1.64784056]
[1643841218516,1.57786099,2685.4,2685.3,1.64784056]
[1643841218917,1.42081286,2685.5,2685.3,1.64784056]
[1643841227127,1.57786099,2685.4,2685.3,1.64784056]
[1643841227531,0.00146071,2685.4,2685.3,1.64784056]
[1643841228330,1.57786099,2685.6,2685.3,1.64784056]
[1643841228331,1.41961472,2685.6,2685.3,1.64784056]
[1643841228868,1.41961472,2685.5,2685.3,1.64784056]
[1643841229066,1.41961472,2685.6,2685.3,1.64784056]
[1643841229266,1.57411472,2685.6,2685.3,1.64784056]
[1643841229469,1.41961472,2685.6,2685.3,1.64784056]
[1643841230969,1.41961472,2685.6,2685.3,1.59784056]
[1643841231371,1.41961472,2685.5,2685.3,1.59784056]
[1643841231567,0.1386,2686.0,2685.3,1.59784056]
[1643841231568,1.41961472,2685.6,2685.3,1.59784056]
[1643841232615,1.42089935,2685.5,2685.3,1.59784056]
[1643841232814,0.94763491,2685.5,2685.3,1.59784056]
[1643841233214,0.94635028,2685.4,2685.3,1.59784056]
[1643841234114,0.94633967,2685.4,2685.3,1.59784056]
[1643841236016,0.94622598,2685.4,2685.3,1.59784056]
[1643841236266,0.94622666,2685.4,2685.3,1.59784056]
[1643841236461,0.00128463,2685.5,2685.3,1.59784056]
[1643841236861,0.94621995,2685.4,2685.3,1.59784056]
[1643841237061,0.94621995,2685.4,2685.2,1.86203]
[1643841237062,0.00128463,2685.5,2685.2,1.72685512]
[1643841237262,0.94622774,2685.3,2685.2,2.26485512]
[1643841242530,0.94749937,2685.3,2685.2,2.26485512]
[1643841243534,0.84749937,2685.3,2685.2,2.26485512]
[1643841245366,0.00127163,2685.3,2685.2,2.26485512]
[1643841247518,0.00139079,2685.6,2685.2,2.26485512]
[1643841247717,0.00139079,2685.6,2685.3,0.93101]
[1643841247923,0.00139079,2685.6,2685.4,0.93102]
[1643841249016,0.00139079,2685.6,2685.4,2.7930502]
[1643841249218,0.00139079,2685.6,2685.5,1.86201]
[1643841257118,0.00139079,2685.6,2685.5,0.17899558]
[1643841257816,0.00139079,2685.6,2685.5,0.931]
[1643841262824,1.42100551,2685.6,2685.5,0.931]
[1643841263025,1.57921674,2685.6,2685.5,0.931]
[1643841263225,0.00139079,2685.6,2685.5,0.931]
[1643841266172,1.42100551,2685.6,2685.5,0.931]
[1643841266873,0.00139079,2685.6,2685.5,0.931]
[1643841267279,1.42100551,2685.6,2685.5,0.931]
[1643841271919,0.00139079,2685.6,2685.5,0.931]
[1643841273779,1.42100551,2685.6,2685.5,0.931]
[1643841273976,0.00139079,2685.6,2685.5,0.931]
[1643841274177,1.42100551,2685.6,2685.5,0.931]
[1643841277184,1.42100551,2685.6,2685.4,0.17899385]
[1643841277917,1.57779426,2685.5,2685.4,0.17899385]
[1643841278114,0.00139079,2685.6,2685.3,2.79302]
[1643841278515,1.57779426,2685.5,2685.4,0.93099]
[1643841278715,0.00139079,2685.6,2685.4,0.93099]
[1643841278915,0.94605607,2685.5,2685.4,0.93099]
[1643841279715,0.94605607,2685.5,2685.4,1.8619201]
[1643841282671,0.94760873,2685.5,2685.4,1.8619201]
[1643841287217,2.52540299,2685.5,2685.4,1.8619201]
[1643841287916,0.94760873,2685.5,2685.4,1.8619201]
[1643841291175,2.5001216,2685.5,2685.4,1.8619201]
[1643841291975,0.92232734,2685.5,2685.4,1.8619201]
[1643841294021,0.00155266,2685.5,2685.4,1.8619201]
[1643841294521,1.57934692,2685.5,2685.4,1.8619201]
[1643841294721,0.00155266,2685.5,2685.4,1.8619201]
[1643841295323,0.00155266,2685.5,2685.4,3.3619201]
[1643841297169,0.00155266,2685.5,2685.4,1.6789739]
[1643841297569,1.42116738,2685.8,2685.4,1.6789739]
[1643841297771,1.57779426,2685.7,2685.4,3.540804]
[1643841297970,3.18496164,2685.8,2685.5,0.93091]
[1643841298170,1.57779426,2685.7,2685.5,0.93091]
[1643841298472,1.57779426,2685.6,2685.5,0.93091]
[1643841298871,1.57779426,2685.7,2685.5,0.93091]
[1643841299071,1.57779426,2685.6,2685.5,0.93091]
[1643841299472,2.99896164,2685.8,2685.5,0.93091]
[1643841299673,1.57779426,2685.7,2685.5,0.93091]
[1643841300119,0.94551855,2685.6,2685.5,0.93091]
[1643841307520,0.94707771,2685.6,2685.5,0.93091]
[1643841314080,0.00155916,2685.6,2685.5,0.93091]
[1643841314680,0.71061025,2685.6,2685.5,0.93091]
[1643841314916,0.71061114,2685.6,2685.5,0.93091]
[1643841315422,1.57935342,2685.6,2685.5,0.93091]
[1643841315821,0.71066234,2685.6,2685.5,0.93091]
[1643841316219,0.00155916,2685.6,2685.5,0.93091]
[1643841316421,0.71060812,2685.6,2685.5,0.93091]
[1643841317026,2.28840238,2685.6,2685.5,0.93091]
[1643841317220,0.71060812,2685.6,2685.4,4.65050661]
[1643841318123,2.28840238,2685.6,2685.5,0.93091]
[1643841318322,1.57935342,2685.6,2685.5,0.93091]
[1643841318523,0.00155916,2685.6,2685.5,0.93091]
[1643841319982,0.71048429,2685.6,2685.5,0.93091]
[1643841320184,0.00155916,2685.6,2685.5,0.93091]
[1643841322522,0.94718342,2685.8,2685.5,0.93091]
[1643841322722,1.13318342,2685.8,2685.5,0.93091]
[1643841322923,2.52331281,2685.7,2685.6,0.9308941]
[1643841323222,2.52331281,2685.7,2685.6,2.7926841]
[1643841323425,0.94551855,2685.7,2685.6,1.86179]
[1643841327667,0.94718992,2685.7,2685.6,1.86179]
[1643841327868,2.52498418,2685.7,2685.6,1.86179]
[1643841328068,0.94718992,2685.7,2685.6,1.86179]
[1643841329270,0.00167137,2685.7,2685.6,1.86179]
[1643841329768,0.94718992,2685.7,2685.6,1.86179]
[1643841333225,0.00167137,2685.7,2685.6,1.86179]
[1643841333670,2.52498418,2685.7,2685.6,1.86179]
[1643841333871,0.94718992,2685.7,2685.6,1.86179]
[1643841336179,2.52498418,2685.7,2685.6,1.86179]
[1643841336874,0.94718992,2685.7,2685.6,1.86179]
[1643841337075,0.94718992,2685.7,2685.6,0.17875912]
[1643841338821,0.00167137,2685.7,2685.6,0.17875912]
[1643841339022,1.57946563,2685.7,2685.6,0.17875912]
[1643841339224,0.00167137,2685.7,2685.6,0.17875912]
[1643841340628,0.94718992,2685.7,2685.6,0.17875912]
[1643841340927,0.00167137,2685.7,2685.6,0.17875912]
[1643841350775,0.00167137,2685.7,2685.6,1.10965122]
[1643841352423,0.79718992,2685.8,2685.6,1.10965122]
[1643841352621,2.37498418,2685.8,2685.6,1.10965122]
[1643841352822,1.57779426,2685.7,2685.6,1.10965122]
[1643841353821,0.79718992,2685.8,2685.7,1.8618]
[1643841357267,0.79718992,2685.8,2685.7,0.17888089]
[1643841357867,0.79865887,2685.8,2685.7,0.17888089]
[1643841360523,1.57918808,2685.8,2685.7,0.17888089]
[1643841360724,0.00146895,2685.8,2685.7,0.17888089]
[1643841362824,0.94725029,2685.8,2685.7,0.17888089]
[1643841363024,2.52496942,2685.8,2685.7,0.17888089]
[1643841363223,0.94725029,2685.8,2685.7,0.17888089]
[1643841363423,2.52495455,2685.8,2685.7,0.17888089]
[1643841363873,0.94723542,2685.8,2685.7,0.17888089]
[1643841364275,1.57918808,2685.8,2685.7,0.17888089]
[1643841364675,0.00146895,2685.8,2685.7,0.17888089]
[1643841367722,0.94714945,2685.8,2685.7,0.17888089]
[1643841367922,2.52486656,2685.8,2685.7,0.17888089]
[1643841368121,0.94714743,2685.8,2685.7,0.17888089]
[1643841371025,0.00146895,2685.8,2685.7,0.17888089]
[1643841371674,0.94722833,2685.8,2685.7,0.17888089]
[1643841371875,2.52494746,2685.8,2685.7,0.17888089]
[1643841372576,0.94722833,2685.8,2685.7,0.17888089]
[1643841373177,2.52494746,2685.8,2685.7,0.17888089]
[1643841373382,0.94722833,2685.8,2685.7,0.17888089]
[1643841374923,0.00146895,2685.8,2685.7,0.17888089]
[1643841375125,0.94722833,2685.8,2685.7,0.17888089]
[1643841375330,0.00146895,2685.8,2685.7,0.17888089]
[1643841376124,1.57918808,2685.8,2685.7,0.17888089]
[1643841376325,0.00146895,2685.8,2685.7,0.17888089]
[1643841376728,0.71065866,2685.8,2685.7,0.17888089]
[1643841376926,0.00146895,2685.8,2685.7,0.17888089]
[1643841377226,1.57918808,2685.8,2685.7,0.17888089]
[1643841377527,0.70918971,2685.9,2685.7,0.3]
[1643841377728,0.70918971,2685.9,2685.7,2.461293]
[1643841378675,0.94575938,2686.2,2685.7,2.461293]
[1643841378676,0.70918971,2686.0,2685.7,2.461293]
[1643841378878,0.70918971,2686.0,2685.8,1.861252]
[1643841379073,0.70918971,2686.2,2685.9,1.46859]
[1643841379673,0.186,2686.6,2685.9,1.46859]
[1643841379674,0.70918971,2686.3,2685.9,1.46859]
[1643841379874,0.70918971,2686.2,2686.0,2.0473256]
[1643841380074,0.70918971,2686.2,2686.0,2.5853256]
[1643841380274,0.70918971,2686.3,2686.1,0.93062]
[1643841380474,0.94575938,2686.5,2686.1,0.93062]
[1643841380475,0.70918971,2686.2,2686.1,0.93062]
[1643841380675,0.70918971,2686.3,2686.2,0.186]
[1643841381076,0.70918971,2686.3,2686.1,0.186]
[1643841381279,0.70918971,2686.3,2686.2,2.7917178]
[1643841381483,0.70918971,2686.4,2686.2,3.3297178]
[1643841383126,0.70918971,2686.4,2686.3,0.93055]
[1643841383328,0.70918971,2686.4,2686.3,1.46855]
[1643841384129,0.70918971,2686.5,2686.3,1.46855]
[1643841384329,0.70918971,2686.5,2686.3,2.04274997]
[1643841384529,0.70918971,2686.6,2686.4,0.3]
[1643841384926,0.70918971,2686.6,2686.5,0.93049]
[1643841386980,0.70918971,2686.7,2686.5,0.93049]
[1643841390228,0.70918971,2686.7,2686.5,1.23049]
[1643841390627,0.70918971,2686.7,2686.5,2.73049]
[1643841391231,0.89518971,2686.8,2686.6,0.3]
[1643841391531,0.70918971,2686.8,2686.7,0.93036]
[1643841393029,0.70918971,2686.8,2686.7,1.23036]
[1643841396184,0.70918971,2686.8,2686.7,1.86390569]
[1643841396383,0.89518971,2687.0,2686.8,1.86052]
[1643841396583,0.70918971,2687.0,2686.8,2.7907776]
[1643841396782,0.70918971,2687.0,2686.8,3.0907776]
[1643841396983,0.70918971,2687.0,2686.9,0.93024]
[1643841397426,0.70918971,2687.0,2686.8,3.0907776]
[1643841397427,0.70918971,2687.0,2686.8,2.33891746]
[1643841397630,2.28613808,2687.0,2686.9,0.3]
[1643841397829,2.28613808,2687.1,2686.9,0.838]
[1643841398031,1.57694837,2687.0,2686.9,0.838]
[1643841398229,1.57694837,2687.0,2686.9,2.6984514]
[1643841398429,2.28613808,2687.2,2686.9,3.8146714]
[1643841398630,1.57694837,2687.1,2686.9,3.6286914]
[1643841398830,1.57694837,2687.0,2686.9,3.6286914]
[1643841399030,1.57694837,2687.1,2686.9,4.0006714]
[1643841399237,1.57694837,2687.2,2687.0,3.0904943]
[1643841399530,1.57694837,2687.2,2687.1,0.538]
[1643841399733,1.57694837,2687.2,2687.1,0.838]
[1643841400734,1.57694837,2687.2,2687.1,1.02398]
[1643841402678,1.57842912,2687.2,2687.1,2.20998]
[1643841403077,1.0655,2687.3,2687.1,2.20998]
[1643841403277,1.0655,2687.3,2687.2,1.11598]
[1643841403576,0.89518971,2688.1,2687.2,1.65398]
[1643841403777,0.186,2687.9,2687.6,0.9299689]
[1643841403976,0.70918971,2688.1,2687.7,0.538]
[1643841403977,0.186,2688.0,2687.7,0.538]
[1643841404677,0.186,2688.0,2687.7,1.46795]
[1643841404927,0.89518971,2688.3,2687.8,0.9298766]
[1643841405124,0.186,2688.1,2687.9,0.538]
[1643841405328,0.89518971,2688.4,2688.0,0.18598]
[1643841405525,0.89518971,2688.4,2687.9,0.838]
[1643841405526,0.186,2688.4,2688.1,0.538]
[1643841405726,0.89518971,2688.6,2688.1,1.138]
[1643841405923,0.89518971,2688.6,2688.1,2.06779]
[1643841406122,0.89518971,2688.6,2688.1,2.6975297]
[1643841406323,0.89518971,2688.6,2688.1,2.1595297]
[1643841406324,0.186,2688.6,2688.1,2.1595297]
[1643841406523,0.186,2688.6,2688.1,3.0892697]
[1643841406726,0.89508971,2689.0,2688.2,0.3]
[1643841406923,0.89508971,2689.0,2688.6,0.92977]
[1643841407124,0.70918971,2688.9,2688.6,0.92977]
[1643841407328,1.2478,2689.1,2688.6,0.92977]
[1643841407329,0.1859,2688.8,2688.6,0.92977]
[1643841407526,0.1859,2689.0,2688.6,0.92977]
[1643841408777,0.70918971,2689.2,2688.6,0.92977]
[1643841408981,0.1859,2689.1,2688.6,0.92977]
[1643841409380,0.1859,2689.1,2688.6,1.22977]
[1643841409581,0.1859,2689.1,2689.0,0.92972]
[1643841409781,0.1859,2689.1,2688.9,1.85943]
[1643841409979,0.89508971,2689.3,2688.6,0.3]
[1643841410180,0.1859,2689.0,2688.4,1.138]
[1643841410380,0.1859,2689.2,2688.5,0.18598]
[1643841410584,0.1859,2689.3,2688.5,0.37188]
[1643841410783,0.1859,2689.3,2688.8,0.92995]
[1643841411181,0.89508971,2689.3,2688.8,0.92995]
[1643841412528,0.0014189,2689.1,2688.8,0.92995]
[1643841412828,0.1859,2689.0,2688.8,0.92995]
[1643841414229,0.0014189,2689.1,2688.8,0.92995]
[1643841414728,0.0014189,2689.1,2688.8,1.22995]
[1643841416382,0.0014189,2689.1,2688.8,1.52995]
[1643841417485,0.0014189,2689.1,2688.7,2.63867167]
[1643841417683,0.1859,2689.4,2688.7,2.63867167]
[1643841417684,0.01444392,2689.4,2688.7,2.63867167]
[1643841418084,0.01444392,2689.4,2688.7,1.85975]
[1643841418290,0.72363363,2689.4,2689.0,0.92989]
[1643841418486,0.1859,2689.3,2689.0,0.92989]
[1643841419091,1.146,2689.7,2689.0,0.92989]
[1643841419092,0.1703,2689.8,2689.2,0.20319418]
[1643841419293,0.93111928,2690.4,2689.5,1.5]
[1643841419294,0.1683,2690.2,2689.5,1.5]
[1643841419488,3.0484,2690.4,2689.5,1.5]
[1643841419489,0.1663,2690.3,2689.6,0.538]
[1643841419687,0.04206334,2690.2,2689.6,0.7237]
[1643841420133,0.04149491,2690.1,2689.6,0.7237]
[1643841420533,0.04092649,2690.0,2689.6,3.5122982]
[1643841420735,0.04092649,2690.0,2689.6,3.51982177]
[1643841420935,0.1643,2690.4,2689.6,3.51982177]
[1643841420936,0.04035807,2689.9,2689.6,3.51982177]
[1643841421234,0.04263176,2690.3,2689.6,3.51982177]
[1643841421636,0.04263176,2690.3,2689.8,1.85893]
[1643841421838,0.04263176,2690.3,2689.9,0.538]
[1643841422635,0.00112015,2690.1,2689.9,0.538]
[1643841423036,0.04092649,2690.0,2689.9,0.538]
[1643841423236,0.04092649,2690.0,2689.9,1.46747]
[1643841423444,1.61619584,2690.0,2689.9,1.46747]
[1643841423879,1.61619584,2690.0,2689.9,1.76747]
[1643841424474,1.61619584,2690.0,2689.8,1.2916812]
[1643841424674,0.04092649,2690.0,2689.9,0.538]
[1643841424875,1.57524093,2690.0,2689.9,0.538]
[1643841425075,0.00112015,2690.1,2689.9,0.538]
[1643841425275,0.00112015,2690.1,2689.9,1.46747]
[1643841425777,0.00112015,2690.1,2689.9,1.47147]
[1643841427439,1.57524093,2690.4,2689.9,2.4008555]
[1643841427834,0.04263176,2690.3,2689.9,2.4008555]
[1643841428034,1.57524093,2690.2,2689.9,2.4008555]
[1643841428235,1.61730427,2690.2,2689.9,2.4008555]
[1643841428440,1.2338,2690.5,2689.9,2.4008555]
[1643841428441,1.61673584,2690.1,2689.9,2.4008555]
[1643841428641,1.57524093,2690.0,2689.9,2.4008555]
[1643841428836,1.61616742,2690.0,2689.9,2.4008555]
[1643841429038,1.61616742,2690.0,2689.9,9.1268555]
[1643841429839,1.61616742,2690.0,2689.9,9.3125555]
[1643841431037,0.04092649,2690.0,2689.9,9.3125555]
[1643841432089,0.04092649,2690.0,2689.9,9.7985355]
[1643841432286,1.0655,2690.5,2689.9,9.7985355]
[1643841432287,1.0655,2690.5,2690.4,0.92918]
[1643841432490,2.64038404,2690.5,2690.4,1.46718]
[1643841433892,2.64038404,2690.5,2690.4,1.76718]
[1643841434089,2.64038404,2690.5,2690.4,2.9963676]
[1643841434934,0.01,2690.7,2690.4,5.1823476]
[1643841435131,0.00821817,2691.0,2690.7,8.58405]
[1643841435332,0.00821817,2691.0,2690.9,7.84097]
[1643841435529,0.00821817,2691.0,2690.9,8.86467]
[1643841435729,0.00821817,2691.0,2690.9,9.2778644]
[1643841435930,0.00821817,2691.0,2690.9,10.2778644]
[1643841437129,0.00821817,2691.0,2690.9,10.0921644]
[1643841437529,0.00821817,2691.0,2690.9,8.41311228]
[1643841437729,0.00821817,2691.0,2690.9,8.59878228]
[1643841438675,0.00716049,2691.0,2690.9,8.59878228]
[1643841439080,0.00716049,2691.0,2690.9,8.89878228]
[1643841439274,0.00716049,2691.0,2690.9,9.19878228]
[1643841440075,0.01152372,2691.2,2690.9,9.19878228]
[1643841440076,0.01152372,2691.2,2691.1,0.9288874]
[1643841440276,0.1703,2691.9,2691.1,12.7648874]
[1643841440476,0.025281,2692.2,2691.4,6.726]
[1643841440679,0.025281,2692.2,2691.2,3.11427]
[1643841440680,0.025281,2692.2,2692.1,6.726]
[1643841440978,0.025281,2692.2,2692.1,8.04967]
[1643841441177,0.1703,2692.9,2692.1,8.04967]
[1643841441380,1.57350428,2692.8,2692.4,6.726]
[1643841441580,1.57350428,2692.8,2692.5,1.45645]
[1643841441581,0.1803,2692.7,2692.5,1.45645]
[1643841441776,0.1803,2692.7,2692.4,5.66485042]
[1643841441975,0.01,2692.7,2692.5,0.538]
[1643841442626,0.01,2692.7,2692.5,1.46645]
[1643841442827,0.1703,2692.9,2692.5,1.45645]
[1643841443027,1.57334726,2692.8,2692.5,1.75645]
[1643841443229,1.57334726,2692.8,2692.5,2.05645]
[1643841443629,1.57334726,2692.8,2692.6,1.5]
[1643841443829,1.57334726,2692.8,2692.7,0.538]
[1643841444629,1.57334726,2692.8,2692.7,7.264]
[1643841445032,0.00307062,2693.0,2692.8,0.1855]
[1643841445033,0.17337062,2693.0,2692.8,0.1855]
[1643841445232,0.00307062,2693.0,2692.9,7.264]
[1643841445433,0.00307062,2693.0,2692.9,8.19224]
[1643841445633,0.1703,2693.6,2692.9,8.38132736]
[1643841445833,1.57310289,2693.5,2693.2,1.85649]
[1643841446034,1.52310289,2693.5,2693.3,0.538]
[1643841446276,0.1703,2693.6,2693.3,0.538]
[1643841446480,1.0655,2693.7,2693.3,0.538]
[1643841446779,1.0655,2693.7,2693.5,1.5]
[1643841446975,1.0655,2693.7,2693.6,0.538]
[1643841447676,1.0655,2693.7,2693.5,0.724]
[1643841447876,1.0655,2693.7,2693.6,0.538]
[1643841448476,1.0155,2693.7,2693.6,0.538]
[1643841451031,1.0155,2693.7,2693.6,7.264]
[1643841451230,1.0155,2693.7,2693.6,7.254]
[1643841451433,1.0155,2693.7,2693.6,7.258]
[1643841452031,1.0155,2693.7,2693.6,7.268]
[1643841452434,1.01695613,2693.7,2693.6,7.268]
[1643841452633,1.01695613,2693.7,2693.6,7.4535]
[1643841454878,1.01695613,2693.7,2693.6,8.7535]
[1643841455078,1.01695613,2693.7,2693.6,8.3523644]
[1643841455277,0.01,2693.8,2693.7,1.85587]
[1643841455478,0.01,2693.9,2693.7,11.61953847]
[1643841455681,3.8629,2695.5,2693.8,6.92667]
[1643841455881,3.8629,2695.5,2695.2,6.726]
[1643841456077,3.8629,2695.5,2695.3,0.543]
[1643841456279,0.01236811,2695.7,2695.3,0.543]
[1643841456879,0.01236811,2695.7,2695.2,5.68116492]
[1643841457184,0.01236811,2695.7,2695.3,0.538]
[1643841457431,0.02236811,2695.7,2695.6,5.04905241]
[1643841457629,0.02236811,2695.7,2695.6,0.548]
[1643841457827,0.02236811,2695.7,2695.6,0.448]
[1643841458030,0.01,2695.7,2695.6,0.448]
[1643841459629,0.01,2695.7,2695.6,1.37547]
[1643841460032,0.01,2695.7,2695.6,1.4886644]
[1643841460233,0.01,2695.7,2695.6,8.10147]
[1643841461183,0.01,2695.7,2695.6,8.05147]
[1643841461582,0.01,2695.7,2695.6,8.05547]
[1643841462182,0.01,2695.7,2695.6,8.24087]
[1643841462388,4.4427,2696.3,2695.6,8.42654]
[1643841462581,4.4427,2696.3,2696.2,7.65314]
[1643841462783,1.1725,2696.9,2696.2,8.19114]
[1643841462982,12.18337601,2697.2,2696.5,6.726]
[1643841463183,12.18337601,2697.2,2696.6,0.538]
[1643841463386,12.18337601,2697.2,2695.6,1.7154544]
[1643841463387,8.43867601,2697.2,2696.7,7.264]
[1643841463584,4.44697601,2697.2,2696.7,7.264]
[1643841463782,4.44697601,2697.2,2696.7,7.164]
[1643841464582,4.4347,2697.2,2696.7,7.164]
[1643841465631,4.4347,2697.2,2696.7,8.09101]
[1643841466028,0.9655,2696.8,2696.7,8.09101]
[1643841466430,0.01,2697.7,2696.7,8.27641]
[1643841466633,1.186,2697.9,2697.4,6.726]
[1643841466831,1.186,2697.9,2697.5,0.288]
[1643841466832,1.57135235,2697.8,2697.5,0.288]
[1643841467231,1.61512096,2697.7,2697.5,0.288]
[1643841467434,1.57135235,2697.6,2697.5,0.288]
[1643841467635,1.57135235,2697.6,2697.4,4.5887305]
[1643841467636,0.04320018,2697.6,2697.4,4.5887305]
[1643841467832,0.04320018,2697.6,2697.5,0.538]
[1643841468032,0.01225779,2698.0,2697.5,0.538]
[1643841468233,1.5712998,2697.9,2697.5,0.538]
[1643841468432,1.62620525,2697.9,2697.5,0.538]
[1643841468676,1.5712998,2697.8,2697.5,0.538]
[1643841468878,1.5812998,2697.8,2697.5,0.538]
[1643841469078,0.04376861,2697.7,2697.5,0.538]
[1643841469477,0.01225779,2698.0,2697.5,0.538]
[1643841469478,0.04320018,2697.6,2697.5,0.538]
[1643841471680,0.04320018,2697.6,2697.0,1.85363]
[1643841471880,0.04320018,2697.6,2697.5,0.004]
[1643841472080,0.06084649,2697.9,2697.5,0.542]
[1643841472534,0.04433703,2697.8,2697.5,0.542]
[1643841472937,0.04376861,2697.7,2697.5,0.552]
[1643841473134,0.04376861,2697.7,2697.5,0.7372]
[1643841473334,0.04320018,2697.6,2697.5,0.7372]
[1643841474435,0.10378328,2697.6,2697.5,0.7372]
[1643841475236,0.10378328,2697.6,2697.5,0.542]
[1643841477484,0.10378328,2697.6,2697.0,0.91496144]
[1643841477684,0.10378328,2697.6,2697.1,0.7233]
[1643841477886,0.04263176,2697.5,2697.1,0.7233]
[1643841478191,0.05407193,2697.4,2697.1,0.7233]
[1643841478585,0.04149491,2697.3,2697.1,0.7233]
[1643841478785,0.04149491,2697.3,2697.1,0.538]
[1643841478985,0.01200859,2697.4,2697.1,0.538]
[1643841478986,0.04092649,2697.2,2697.1,0.538]
[1643841479185,0.04092649,2697.2,2696.9,6.726]
[1643841479386,0.04092649,2697.2,2697.0,0.538]
[1643841479586,0.04035807,2697.1,2697.0,0.538]
[1643841480630,0.04035807,2697.1,2696.7,0.538]
[1643841481832,0.1852,2697.0,2696.7,0.538]
[1643841482031,0.1852,2697.0,2696.3,0.538]
[1643841482630,1.57142406,2696.9,2696.3,0.538]
[1643841482834,0.19764462,2696.8,2696.3,0.538]
[1643841483697,1.57148142,2696.7,2696.3,0.538]
[1643841485097,1.57148142,2696.7,2696.1,0.1854]
[1643841486296,1.75688142,2696.7,2696.1,0.1854]
[1643841486498,1.57148142,2696.6,2696.1,0.1854]
[1643841486696,1.57148142,2696.6,2696.0,2.94831]
[1643841487297,0.1854,2696.7,2696.0,0.7234]
[1643841487535,0.1854,2696.7,2696.1,0.1131944]
[1643841487734,4.32415952,2697.1,2696.1,0.1131944]
[1643841487735,0.00167341,2696.6,2696.2,0.7234]
[1643841488437,0.00167341,2696.6,2696.2,2.87777]
[1643841488637,0.00167341,2696.6,2696.2,2.57777]
[1643841488934,0.00167341,2696.6,2696.2,2.76344]
[1643841489133,0.00167341,2696.6,2696.2,3.06344]
[1643841490336,0.00167341,2696.6,2696.2,2.57777]
[1643841490539,0.00167341,2696.6,2696.2,2.77777]
[1643841491485,0.00167341,2696.6,2696.2,2.47777]
[1643841491687,0.00167341,2696.6,2696.2,0.7234]
[1643841492586,0.00167341,2696.6,2696.3,0.1131944]
[1643841492786,0.00167341,2696.6,2696.4,0.538]
[1643841492988,0.00167341,2696.6,2696.5,0.538]
[1643841497432,0.00167341,2696.6,2696.5,0.6511944]
[1643841497630,1.57115534,2696.9,2696.2,0.1854]
[1643841497831,1.57115534,2696.9,2696.3,0.538]
[1643841498032,1.57115534,2696.9,2696.4,0.1854]
[1643841498233,1.57115534,2696.9,2696.5,0.538]
[1643841498434,1.57115534,2696.9,2696.6,0.538]
[1643841498685,1.57115534,2696.9,2696.6,0.438]
[1643841501089,1.57115534,2696.9,2696.6,0.388]
[1643841502431,1.57115534,2696.9,2696.7,6.726]
[1643841502631,1.57115534,2696.9,2696.8,0.538]
[1643841503233,1.57115534,2696.9,2696.8,7.264]
[1643841507013,1.57115534,2697.0,2696.8,7.264]
[1643841509313,2.4931163,2697.1,2696.8,7.264]
[1643841509517,1.57115534,2697.0,2696.8,7.264]
[1643841509934,2.26735823,2697.0,2696.8,7.264]
[1643841510134,1.57115534,2696.9,2696.8,7.264]
[1643841511034,2.26735823,2697.0,2696.8,7.264]
[1643841511235,1.57115534,2696.9,2696.8,7.264]
[1643841511834,1.57115534,2697.0,2696.8,7.264]
[1643841512038,1.57115534,2696.9,2696.8,7.264]
[1643841512836,1.57115534,2697.0,2696.8,7.264]
[1643841515482,1.57115534,2697.0,2696.8,0.538]
[1643841516084,1.57115534,2696.9,2696.8,0.538]
[1643841516287,0.69620289,2696.9,2696.8,0.538]
[1643841516484,1.75655534,2696.9,2696.5,0.538]
[1643841516684,0.70457642,2696.7,2696.5,0.538]
[1643841516885,0.88997642,2696.7,2696.5,0.538]
[1643841517083,1.57115534,2696.6,2696.5,0.538]
[1643841517287,2.27573176,2696.6,2696.5,0.538]
[1643841517538,1.57115534,2696.6,2696.5,0.538]
[1643841517739,1.57115534,2696.6,2696.1,0.1854]
[1643841517938,1.57115534,2696.5,2696.2,0.538]
[1643841518141,1.57115534,2696.4,2696.2,0.538]
[1643841518338,1.57115534,2696.3,2696.2,0.538]
[1643841518839,1.57115534,2696.5,2696.2,0.538]
[1643841519640,2.27573176,2696.5,2696.2,0.538]
[1643841520042,0.1854,2696.4,2696.2,0.538]
[1643841520443,1.57115534,2696.3,2696.2,0.538]
[1643841520843,1.57115534,2696.3,2695.9,0.788]
[1643841521045,0.1854,2696.2,2695.9,0.538]
[1643841521287,1.57115534,2696.1,2695.9,0.538]
[1643841521685,1.57115534,2696.0,2695.9,0.538]
[1643841522085,1.75655534,2696.1,2695.9,0.538]
[1643841522289,1.75683534,2696.0,2695.6,0.538]
[1643841522492,0.19831869,2696.1,2695.6,0.538]
[1643841522493,1.75655534,2695.9,2695.6,0.538]
[1643841522689,1.57115534,2695.8,2695.6,0.538]
[1643841522888,1.57115534,2695.8,2695.1,0.1854]
[1643841522889,1.57115534,2695.7,2695.1,0.1854]
[1643841523089,1.57115534,2695.7,2695.2,0.538]
[1643841523289,1.57115534,2695.6,2695.2,0.538]
[1643841523491,1.57115534,2695.5,2695.2,0.538]
[1643841523689,1.57115534,2695.4,2695.2,0.538]